[Event "26th OIBM 2023"]
[Site "Gmund am Tegernsee"]
[Date "2023.11.02"]
[Round "6.37"]
[White "Lerchl, Clemens"]
[Black "Weitzer, Steffen"]
[Result "1-0"]
[ECO "B76"]
[WhiteElo "1850"]
[BlackElo "2256"]
[Annotator "ChessBase"]
[PlyCount "55"]
[EventDate "2023.10.04"]
[EventType "swiss"]
[EventCountry "GER"]
[SourceTitle "playchess.com"]
[Source "ChessBase"]
[SourceQuality "1"]
[TimeControl "40/5400+30:1800+30"]

1. e4 {[%emt 0:00:04]} c5 {[%emt 0:00:11]} 2. Nf3 {[%emt 0:00:04]} d6 {[%emt 0:00:12]} 3. d4 {[%emt 0:00:04]} cxd4 {[%emt 0:00:14]} 4. Nxd4 {[%emt 0:00:05]} Nf6 {[%emt 0:00:12]} 5. Nc3 {[%emt 0:00:05]} g6 {[%emt 0:00:29]} 6. Be3 {[%emt 0:01:19]} Bg7 {[%emt 0:00:14]} 7. f3 {[%emt 0:01:12]} Nc6 {[%emt 0:00:27]} 8. Qd2 {[%emt 0:01:07]} O-O {[%emt 0:00:22]} 9. g4 {[%emt 0:03:09]} h5 {[%emt 0:08:20]} 10. gxh5 {[%emt 0:03:34]} Nxh5 {[%emt 0:00:31]} 11. O-O-O {[%emt 0:01:31]} Kh7 {[%emt 0:05:08]} 12. Rg1 {[%emt 0:03:14]} Bd7 {[%emt 0:02:16]} 13. Bc4 {[%emt 0:14:27]} Rc8 {[%emt 0:08:38]} 14. Bb3 {[%emt 0:00:07]} Ne5 {[%emt 0:05:58]} 15. f4 {[%emt 0:10:22]} Ng4 {[%emt 0:08:09]} 16. f5 {[%emt 0:02:32]} Nxe3 {[%emt 0:04:04]} 17. Qxe3 {[%emt 0:00:24]} Bh6 {[%emt 0:00:30]} 18. Rg5 {[%emt 0:00:53]} e6 {[%emt 0:19:46]} 19. h4 {[%emt 0:04:28]} f6 {[%emt 0:07:06]} 20. fxg6+ {[%emt 0:02:58]} Kg7 {[%emt 0:00:57]} 21. Rdg1 {[%emt 0:02:04]} Rc5 {[%emt 0:00:45]} 22. Bxe6 {[%emt 0:21:08]} fxg5 {[%emt 0:19:32]} 23. Bxd7 {[%emt 0:00:31]} Qxd7 {[%emt 0:00:27]} 24. hxg5 {[%emt 0:00:48]} Rxg5 {[%emt 0:02:45]} 25. Rxg5 {[%emt 0:00:04]} Qe7 {[%emt 0:00:21]} 26. Nd5 {[%emt 0:04:43]} Bxg5 {[%emt 0:00:13]} 27. Ne6+ {[%emt 0:00:31]} Kxg6 {[%emt 0:00:35]} 28. Nxe7+ {[%emt 0:00:07]} 1-0

[Event "26th OIBM 2023"]
[Site "Gmund am Tegernsee"]
[Date "2023.11.02"]
[Round "6.38"]
[White "Hoy, Bernd"]
[Black "Mueller, Fabian"]
[Result "1/2-1/2"]
[ECO "B15"]
[WhiteElo "2251"]
[BlackElo "2309"]
[Annotator "ChessBase"]
[PlyCount "96"]
[EventDate "2023.10.04"]
[EventType "swiss"]
[EventCountry "GER"]
[SourceTitle "playchess.com"]
[Source "ChessBase"]
[SourceQuality "1"]
[TimeControl "40/5400+30:1800+30"]

1. e4 {[%emt 0:00:02]} c6 {[%emt 0:00:06]} 2. Nf3 {[%emt 0:00:41]} d5 {[%emt 0:00:05]} 3. Nc3 {[%emt 0:00:04]} dxe4 {[%emt 0:00:07]} 4. Nxe4 {[%emt 0:00:03]} Nf6 {[%emt 0:00:08]} 5. Ng3 {[%emt 0:01:25]} g6 {[%emt 0:01:59]} 6. Bc4 {[%emt 0:00:14]} Bg7 {[%emt 0:06:51]} 7. d4 {[%emt 0:02:46]} a5 {[%emt 0:05:23]} 8. c3 {[%emt 0:00:44]} a4 {[%emt 0:01:44]} 9. Ne5 {[%emt 0:02:17]} O-O {[%emt 0:01:55]} 10. Qf3 {[%emt 0:03:14]} Nbd7 {[%emt 0:12:37]} 11. O-O {[%emt 0:07:38]} Nd5 {[%emt 0:09:01]} 12. Re1 {[%emt 0:02:57]} Nxe5 {[%emt 0:07:42]} 13. dxe5 {[%emt 1:14:55]} Be6 14. Bf1 {[%emt 0:00:00]} Qc7 {[%emt 0:01:48]} 15. Qe4 {[%emt 0:00:00]} a3 {[%emt 0:02:31]} 16. c4 {[%emt 0:00:00]} axb2 {[%emt 0:03:58]} 17. Bxb2 {[%emt 0:00:00]} Nb6 {[%emt 0:00:24]} 18. f4 {[%emt 0:00:00]} Ra4 {[%emt 0:02:01]} 19. f5 {[%emt 0:00:00]} Nxc4 {[%emt 0:11:49]} 20. Bc3 {[%emt 0:00:00]} Nb6 {[%emt 0:01:29]} 21. Qf3 {[%emt 0:00:00]} gxf5 {[%emt 0:01:35]} 22. Nxf5 {[%emt 0:00:00]} Bxf5 {[%emt 0:01:27]} 23. Qxf5 {[%emt 0:00:00]} e6 {[%emt 0:04:17]} 24. Qf2 {[%emt 0:00:00]} Nd5 {[%emt 0:00:25]} 25. Bd4 {[%emt 0:00:00]} Ne7 {[%emt 0:05:04]} 26. Bc5 {[%emt 0:00:00]} Bxe5 {[%emt 0:01:53]} 27. Rxe5 {[%emt 0:00:00]} Qxe5 {[%emt 0:00:05]} 28. Re1 {[%emt 0:00:00]} Qf5 {[%emt 0:01:29]} 29. Bxe7 {[%emt 0:00:00]} Qxf2+ {[%emt 0:00:02]} 30. Kxf2 {[%emt 0:00:00]} Rxa2+ {[%emt 0:00:02]} 31. Kg3 {[%emt 0:00:00]} Re8 {[%emt 0:00:31]} 32. Bf6 {[%emt 0:00:00]} e5 {[%emt 0:02:27]} 33. Rd1 {[%emt 0:00:00]} Ra3+ {[%emt 0:00:32]} 34. Kf2 {[%emt 0:00:00]} Ra4 {[%emt 0:04:23]} 35. g3 {[%emt 0:00:00]} e4 {[%emt 0:00:24]} 36. Be2 {[%emt 0:00:00]} h6 {[%emt 0:01:33]} 37. Rd7 {[%emt 0:00:00]} Ra5 {[%emt 0:03:34]} 38. g4 {[%emt 0:00:00]} b5 {[%emt 0:00:14]} 39. h4 {[%emt 0:00:00]} Ra3 {[%emt 0:00:47]} 40. g5 {[%emt 0:00:00]} Rh3 {[%emt 0:05:54]} 41. Bh5 {[%emt 0:00:00]} e3+ {[%emt 0:30:42]} 42. Kg2 {[%emt 0:00:00]} e2 {[%emt 0:00:00]} 43. Bxf7+ {[%emt 0:00:00]} Kf8 {[%emt 0:00:00]} 44. Bg6 {[%emt 0:00:00]} Rg3+ {[%emt 0:00:00]} 45. Kh2 {[%emt 0:00:00]} e1=Q {[%emt 0:00:00]} 46. Rf7+ {[%emt 0:00:00]} Kg8 {[%emt 0:00:00]} 47. Rg7+ {[%emt 0:00:00]} Kf8 {[%emt 0:00:00]} 48. Rf7+ {[%emt 0:00:00]} Kg8 {[%emt 0:00:00]} 1/2-1/2

[Event "26th OIBM 2023"]
[Site "Gmund am Tegernsee"]
[Date "2023.11.02"]
[Round "6.39"]
[White "Geist, Tim"]
[Black "Deglmann, Ludwig"]
[Result "1/2-1/2"]
[ECO "B38"]
[WhiteElo "1713"]
[BlackElo "2243"]
[Annotator "ChessBase"]
[PlyCount "30"]
[EventDate "2023.10.04"]
[EventType "swiss"]
[EventCountry "GER"]
[SourceTitle "playchess.com"]
[Source "ChessBase"]
[SourceQuality "1"]
[TimeControl "40/5400+30:1800+30"]

1. e4 {[%emt 0:00:06]} c5 {[%emt 0:00:51]} 2. Nf3 {[%emt 0:00:06]} Nc6 {[%emt 0:00:06]} 3. d4 {[%emt 0:00:04]} cxd4 {[%emt 0:00:06]} 4. Nxd4 {[%emt 0:00:03]} g6 {[%emt 0:01:21]} 5. c4 {[%emt 0:00:07]} Bg7 {[%emt 0:02:51]} 6. Be3 {[%emt 0:00:08]} Nf6 {[%emt 0:03:09]} 7. Nc3 {[%emt 0:00:18]} O-O {[%emt 0:00:43]} 8. Be2 {[%emt 0:00:13]} b6 {[%emt 0:00:47]} 9. O-O {[%emt 0:00:51]} Bb7 {[%emt 0:03:01]} 10. f3 {[%emt 0:00:45]} Qb8 {[%emt 0:02:27]} 11. Qd2 {[%emt 0:02:03]} Rd8 {[%emt 0:01:37]} 12. Rad1 {[%emt 0:01:02]} d6 {[%emt 0:02:29]} 13. a3 {[%emt 0:01:23]} Rd7 {[%emt 0:03:24]} 14. b4 {[%emt 0:03:38]} Qf8 {[%emt 0:03:15]} 15. Rc1 {[%emt 0:10:57]} Rad8 {[%emt 0:03:29]} 1/2-1/2

[Event "26th OIBM 2023"]
[Site "Gmund am Tegernsee"]
[Date "2023.11.02"]
[Round "6.40"]
[White "Pavlov, Liliane"]
[Black "Raupp, Thomas"]
[Result "0-1"]
[ECO "E14"]
[WhiteElo "1702"]
[BlackElo "2239"]
[Annotator "ChessBase"]
[PlyCount "98"]
[EventDate "2023.10.04"]
[EventType "swiss"]
[EventCountry "GER"]
[SourceTitle "playchess.com"]
[Source "ChessBase"]
[SourceQuality "1"]
[TimeControl "40/5400+30:1800+30"]

1. d4 {[%emt 0:00:03]} Nf6 {[%emt 0:00:16]} 2. Nf3 {[%emt 0:00:41]} e6 {[%emt 0:00:41]} 3. c4 {[%emt 0:00:14]} d5 {[%emt 0:00:54]} 4. e3 {[%emt 0:02:01]} Be7 {[%emt 0:02:39]} 5. Nbd2 {[%emt 0:03:21]} O-O {[%emt 0:02:44]} 6. Bd3 {[%emt 0:04:02]} b6 {[%emt 0:15:40]} 7. O-O {[%emt 0:06:18]} Bb7 {[%emt 0:00:49]} 8. b3 {[%emt 0:00:31]} Nbd7 {[%emt 0:03:45]} 9. Bb2 {[%emt 0:00:42]} c5 {[%emt 0:13:17]} 10. cxd5 {[%emt 0:11:34]} exd5 {[%emt 0:11:22]} 11. Qe2 {[%emt 0:03:34]} Re8 {[%emt 0:02:03]} 12. Ne5 {[%emt 0:18:07]} Nxe5 {[%emt 0:08:41]} 13. dxe5 {[%emt 0:00:03]} Nd7 {[%emt 0:00:12]} 14. Qh5 {[%emt 0:01:35]} g6 {[%emt 0:01:42]} 15. Qh3 {[%emt 0:00:51]} Bf8 {[%emt 0:01:38]} 16. f4 {[%emt 0:01:00]} a6 {[%emt 0:01:56]} 17. Nf3 {[%emt 0:01:04]} Bg7 {[%emt 0:02:06]} 18. Ng5 {[%emt 0:13:46]} Nf8 {[%emt 0:01:13]} 19. Rad1 {[%emt 0:11:25]} Qe7 {[%emt 0:04:09]} 20. Qg3 {[%emt 0:05:33]} Rac8 {[%emt 0:06:03]} 21. Rc1 {[%emt 0:01:59]} b5 {[%emt 0:00:43]} 22. Be2 {[%emt 0:03:37]} h6 {[%emt 0:04:30]} 23. Nf3 {[%emt 0:00:09]} f6 {[%emt 0:04:05]} 24. Nh4 {[%emt 0:03:47]} fxe5 {[%emt 0:02:15]} 25. Nxg6 {[%emt 0:01:13]} Nxg6 {[%emt 0:00:12]} 26. Qxg6 {[%emt 0:00:04]} Rc6 {[%emt 0:03:31]} 27. Qg4 {[%emt 0:01:12]} Bc8 {[%emt 0:02:29]} 28. f5 {[%emt 0:00:52]} Qg5 {[%emt 0:00:19]} 29. Qh3 {[%emt 0:00:50]} c4 {[%emt 0:02:18]} 30. bxc4 {[%emt 0:01:12]} dxc4 {[%emt 0:00:16]} 31. Bc3 {[%emt 0:02:29]} e4 {[%emt 0:01:58]} 32. Rf4 {[%emt 0:01:02]} Rc7 {[%emt 0:01:02]} 33. Bg4 {[%emt 0:01:23]} Bxc3 {[%emt 0:00:18]} 34. Rxc3 {[%emt 0:00:03]} Qf6 {[%emt 0:00:10]} 35. Rc1 {[%emt 0:00:48]} Re5 {[%emt 0:00:25]} 36. Qg3 {[%emt 0:00:33]} Rg7 {[%emt 0:00:15]} 37. Qf2 {[%emt 0:00:18]} h5 {[%emt 0:00:47]} 38. Bxh5 {[%emt 0:00:51]} Rxf5 {[%emt 0:00:06]} 39. Be2 {[%emt 0:00:24]} Rxf4 {[%emt 0:00:51]} 40. exf4 {[%emt 0:00:02]} Bh3 {[%emt 0:01:06]} 41. g3 {[%emt 0:30:51]} Rd7 {[%emt 0:01:28]} 42. Bf1 {[%emt 0:00:00]} Bxf1 {[%emt 0:02:12]} 43. Kxf1 {[%emt 0:00:00]} Qd4 {[%emt 0:09:24]} 44. Qxd4 {[%emt 0:00:00]} Rxd4 {[%emt 0:00:07]} 45. Ke2 {[%emt 0:00:00]} Rd3 {[%emt 0:00:11]} 46. a4 {[%emt 0:00:00]} c3 {[%emt 0:06:45]} 47. axb5 {[%emt 0:00:00]} axb5 {[%emt 0:00:01]} 48. Ra1 {[%emt 0:00:00]} b4 {[%emt 0:01:29]} 49. Ra4 {[%emt 0:00:00]} c2 {[%emt 0:00:33]} 0-1

[Event "26th OIBM 2023"]
[Site "Gmund am Tegernsee"]
[Date "2023.11.02"]
[Round "6.41"]
[White "Ciolek, Andreas"]
[Black "Andrade, Ruben"]
[Result "1-0"]
[ECO "D36"]
[WhiteElo "2215"]
[BlackElo "1797"]
[Annotator "ChessBase"]
[PlyCount "103"]
[EventDate "2023.10.04"]
[EventType "swiss"]
[EventCountry "GER"]
[SourceTitle "playchess.com"]
[Source "ChessBase"]
[SourceQuality "1"]
[TimeControl "40/5400+30:1800+30"]

1. d4 {[%emt 0:00:03]} d5 {[%emt 0:00:05]} 2. c4 {[%emt 0:00:10]} e6 {[%emt 0:00:04]} 3. Nc3 {[%emt 0:00:11]} Nf6 {[%emt 0:00:03]} 4. cxd5 {[%emt 0:00:11]} exd5 {[%emt 0:00:05]} 5. Bg5 {[%emt 0:00:16]} Be7 {[%emt 0:00:06]} 6. e3 {[%emt 0:00:09]} O-O {[%emt 0:00:07]} 7. Bd3 {[%emt 0:00:30]} h6 {[%emt 0:00:20]} 8. Bh4 {[%emt 0:00:17]} Re8 {[%emt 0:00:23]} 9. Nge2 {[%emt 0:00:48]} c6 {[%emt 0:01:45]} 10. O-O {[%emt 0:01:44]} Nbd7 {[%emt 0:03:32]} 11. Qc2 {[%emt 0:01:08]} Ne4 {[%emt 0:04:11]} 12. Bxe7 {[%emt 0:04:33]} Qxe7 {[%emt 0:00:05]} 13. Bxe4 {[%emt 0:00:17]} dxe4 {[%emt 0:00:04]} 14. d5 {[%emt 0:00:18]} Nf6 {[%emt 0:08:51]} 15. Rfd1 {[%emt 0:03:28]} Nxd5 {[%emt 0:03:02]} 16. Nxd5 {[%emt 0:02:23]} cxd5 {[%emt 0:00:03]} 17. Rxd5 {[%emt 0:00:19]} Bd7 {[%emt 0:02:36]} 18. Nc3 {[%emt 0:24:48]} Bc6 {[%emt 0:17:03]} 19. Rd4 {[%emt 0:04:20]} Rac8 {[%emt 0:08:36]} 20. h3 {[%emt 0:04:01]} Rc7 {[%emt 0:07:56]} 21. Rad1 {[%emt 0:03:15]} f5 {[%emt 0:02:14]} 22. Qd2 {[%emt 0:11:25]} Rec8 {[%emt 0:04:39]} 23. Rd6 {[%emt 0:02:05]} Qe5 {[%emt 0:01:46]} 24. Qc2 {[%emt 0:09:33]} Kh7 {[%emt 0:07:49]} 25. Qb3 {[%emt 0:01:01]} Re7 {[%emt 0:05:23]} 26. g3 {[%emt 0:01:51]} Qa5 {[%emt 0:04:41]} 27. h4 {[%emt 0:02:39]} Be8 {[%emt 0:05:00]} 28. R1d5 {[%emt 0:07:39]} Rc5 {[%emt 0:00:45]} 29. Rxc5 {[%emt 0:00:50]} Qxc5 {[%emt 0:00:04]} 30. Rd5 {[%emt 0:00:29]} Qc8 {[%emt 0:00:30]} 31. Qa3 {[%emt 0:01:05]} Rc7 {[%emt 0:09:01]} 32. Qxa7 {[%emt 0:01:43]} Bf7 {[%emt 0:02:59]} 33. Rd4 {[%emt 0:01:19]} Bh5 {[%emt 0:00:36]} 34. Qa5 {[%emt 0:01:30]} Bf3 {[%emt 0:00:55]} 35. Qe5 {[%emt 0:02:54]} f4 {[%emt 0:02:10]} 36. Kh2 {[%emt 0:02:46]} fxg3+ {[%emt 0:00:06]} 37. fxg3 {[%emt 0:00:41]} Rf7 {[%emt 0:00:44]} 38. Rd2 {[%emt 0:03:29]} Qg4 {[%emt 0:00:32]} 39. Rf2 {[%emt 0:01:43]} Rf5 {[%emt 0:00:35]} 40. Qe6 {[%emt 0:00:50]} Qh5 {[%emt 0:00:27]} 41. Qd7 {[%emt 0:08:31]} Rg5 {[%emt 0:22:57]} 42. Rd2 {[%emt 0:06:56]} Rg4 {[%emt 0:01:43]} 43. Nd5 {[%emt 0:01:11]} Qe5 {[%emt 0:06:05]} 44. Nf4 {[%emt 0:01:20]} Qc5 {[%emt 0:00:15]} 45. Qd5 {[%emt 0:05:00]} Qc8 {[%emt 0:01:14]} 46. Qd7 {[%emt 0:03:27]} Qf8 {[%emt 0:00:44]} 47. Qxb7 {[%emt 0:02:33]} Rxf4 {[%emt 0:00:34]} 48. gxf4 {[%emt 0:00:29]} Qf6 {[%emt 0:00:16]} 49. Qd7 {[%emt 0:00:48]} Qxh4+ {[%emt 0:00:06]} 50. Qh3 {[%emt 0:00:06]} Qf6 {[%emt 0:01:03]} 51. Rd5 {[%emt 0:01:44]} Qxb2+ {[%emt 0:00:21]} 52. Kg3 {[%emt 0:00:05]} 1-0

[Event "26th OIBM 2023"]
[Site "Gmund am Tegernsee"]
[Date "2023.11.02"]
[Round "6.42"]
[White "Mazatis, Benjamin"]
[Black "Imnadze, Nato"]
[Result "0-1"]
[ECO "D38"]
[WhiteElo "1666"]
[BlackElo "2207"]
[Annotator "ChessBase"]
[PlyCount "72"]
[EventDate "2023.10.04"]
[EventType "swiss"]
[EventCountry "GER"]
[SourceTitle "playchess.com"]
[Source "ChessBase"]
[SourceQuality "1"]
[TimeControl "40/5400+30:1800+30"]

1. d4 {[%emt 0:00:07]} Nf6 {[%emt 0:00:10]} 2. c4 {[%emt 0:00:09]} e6 {[%emt 0:00:04]} 3. Nf3 {[%emt 0:00:06]} d5 {[%emt 0:00:07]} 4. Nc3 {[%emt 0:00:50]} Bb4 {[%emt 0:00:52]} 5. cxd5 {[%emt 0:00:13]} exd5 {[%emt 0:00:03]} 6. Bg5 {[%emt 0:00:12]} h6 {[%emt 0:00:13]} 7. Bh4 {[%emt 0:00:09]} O-O {[%emt 0:00:18]} 8. e3 {[%emt 0:00:08]} Bf5 {[%emt 0:01:43]} 9. Be2 {[%emt 0:00:20]} Nbd7 {[%emt 0:01:46]} 10. Qb3 {[%emt 0:01:50]} Bxc3+ {[%emt 0:04:56]} 11. Qxc3 {[%emt 0:02:18]} c6 {[%emt 0:00:20]} 12. Nd2 {[%emt 0:03:42]} Re8 {[%emt 0:03:13]} 13. Nf1 {[%emt 0:09:17]} g5 {[%emt 0:08:38]} 14. Bg3 {[%emt 0:01:12]} Ne4 {[%emt 0:00:06]} 15. Qb4 {[%emt 0:05:32]} Bg6 {[%emt 0:18:55]} 16. f3 {[%emt 0:12:34]} Nxg3 {[%emt 0:05:51]} 17. hxg3 {[%emt 0:00:35]} Kg7 {[%emt 0:01:19]} 18. Qxb7 {[%emt 0:03:38]} Rb8 {[%emt 0:05:26]} 19. Qa6 {[%emt 0:19:24]} Rxb2 {[%emt 0:00:29]} 20. Bd3 {[%emt 0:03:50]} Qb8 {[%emt 0:06:19]} 21. Qa3 {[%emt 0:01:22]} Bxd3 {[%emt 0:07:37]} 22. Qxd3 {[%emt 0:00:16]} Qb4+ {[%emt 0:00:22]} 23. Nd2 {[%emt 0:00:22]} Rxd2 {[%emt 0:01:30]} 24. Qxd2 {[%emt 0:00:48]} Rxe3+ {[%emt 0:00:05]} 25. Kd1 {[%emt 0:00:48]} Qa4+ {[%emt 0:00:10]} 26. Kc1 {[%emt 0:01:57]} Qc4+ {[%emt 0:07:17]} 27. Kb1 {[%emt 0:01:28]} Re2 {[%emt 0:00:41]} 28. Qd1 {[%emt 0:00:22]} Nb6 {[%emt 0:00:46]} 29. Qb3 {[%emt 0:00:40]} Qxd4 {[%emt 0:00:38]} 30. Rd1 {[%emt 0:00:52]} Qf6 {[%emt 0:08:55]} 31. a4 {[%emt 0:00:32]} Nc4 {[%emt 0:00:55]} 32. Ra2 {[%emt 0:00:22]} Re3 {[%emt 0:00:37]} 33. Qb4 {[%emt 0:03:15]} a5 {[%emt 0:02:11]} 34. Qc5 {[%emt 0:01:58]} Rb3+ {[%emt 0:00:12]} 35. Kc1 {[%emt 0:01:38]} Qc3+ {[%emt 0:00:05]} 36. Rc2 {[%emt 0:00:20]} Qa1# {[%emt 0:00:03]} 0-1

[Event "26th OIBM 2023"]
[Site "Gmund am Tegernsee"]
[Date "2023.11.02"]
[Round "6.43"]
[White "Schnicke, Robert"]
[Black "Womacka, Mathias"]
[Result "0-1"]
[ECO "E46"]
[WhiteElo "2033"]
[BlackElo "2371"]
[Annotator "ChessBase"]
[PlyCount "106"]
[EventDate "2023.10.04"]
[EventType "swiss"]
[EventCountry "GER"]
[SourceTitle "playchess.com"]
[Source "ChessBase"]
[SourceQuality "1"]
[TimeControl "40/5400+30:1800+30"]

1. d4 {[%emt 0:00:07]} Nf6 {[%emt 0:00:07]} 2. c4 {[%emt 0:00:12]} e6 {[%emt 0:00:05]} 3. Nc3 {[%emt 0:00:17]} Bb4 {[%emt 0:00:07]} 4. e3 {[%emt 0:00:48]} O-O {[%emt 0:00:26]} 5. Nge2 {[%emt 0:00:41]} d5 {[%emt 0:00:49]} 6. a3 {[%emt 0:00:15]} Be7 {[%emt 0:00:15]} 7. Ng3 {[%emt 0:03:00]} c5 {[%emt 0:11:19]} 8. dxc5 {[%emt 0:03:56]} Bxc5 {[%emt 0:00:23]} 9. Be2 {[%emt 0:03:08]} dxc4 {[%emt 0:16:37]} 10. Qxd8 {[%emt 0:01:35]} Rxd8 {[%emt 0:01:29]} 11. Bxc4 {[%emt 0:01:01]} Nc6 {[%emt 0:05:49]} 12. O-O {[%emt 0:06:06]} Bd7 {[%emt 0:05:14]} 13. Bd2 {[%emt 0:07:08]} Ne5 {[%emt 0:04:46]} 14. Be2 {[%emt 0:01:53]} Bc6 {[%emt 0:00:05]} 15. Rfd1 {[%emt 0:01:07]} Nd3 {[%emt 0:02:04]} 16. b4 {[%emt 0:00:36]} Be7 {[%emt 0:00:07]} 17. Rab1 {[%emt 0:01:53]} b6 {[%emt 0:06:15]} 18. f3 {[%emt 0:11:39]} Rd7 {[%emt 0:02:50]} 19. Kf1 {[%emt 0:06:39]} Rad8 {[%emt 0:00:36]} 20. Bxd3 {[%emt 0:00:50]} Rxd3 {[%emt 0:00:05]} 21. Ke2 {[%emt 0:00:33]} h5 {[%emt 0:03:58]} 22. Nh1 {[%emt 0:00:47]} h4 {[%emt 0:01:42]} 23. Nf2 {[%emt 0:00:10]} R3d7 {[%emt 0:00:05]} 24. e4 {[%emt 0:04:56]} Nh5 {[%emt 0:01:14]} 25. Ng4 {[%emt 0:04:22]} Bb7 {[%emt 0:00:49]} 26. Be3 {[%emt 0:12:23]} f5 {[%emt 0:02:56]} 27. Rxd7 {[%emt 0:03:47]} Rxd7 {[%emt 0:01:35]} 28. exf5 {[%emt 0:03:25]} exf5 {[%emt 0:00:08]} 29. Ne5 {[%emt 0:03:59]} Rc7 {[%emt 0:02:52]} 30. Rc1 {[%emt 0:00:40]} Bf6 {[%emt 0:05:16]} 31. f4 {[%emt 0:00:14]} Re7 {[%emt 0:05:21]} 32. Kf2 {[%emt 0:03:53]} Nxf4 {[%emt 0:01:23]} 33. Bxf4 {[%emt 0:00:08]} Bxe5 {[%emt 0:00:05]} 34. Bxe5 {[%emt 0:00:21]} Rxe5 {[%emt 0:00:05]} 35. g3 {[%emt 0:02:22]} hxg3+ {[%emt 0:03:13]} 36. hxg3 {[%emt 0:00:10]} Re7 {[%emt 0:04:18]} 37. Nb5 {[%emt 0:00:44]} Bd5 {[%emt 0:03:40]} 38. Rc7 {[%emt 0:02:55]} Rxc7 {[%emt 0:03:57]} 39. Nxc7 {[%emt 0:00:09]} Bc4 {[%emt 0:04:03]} 40. Ne8 {[%emt 0:00:16]} Kf8 {[%emt 0:00:45]} 41. Nd6 {[%emt 0:30:11]} Be6 {[%emt 0:30:07]} 42. Ke3 {[%emt 0:06:27]} Ke7 {[%emt 0:01:25]} 43. Nb5 {[%emt 0:00:10]} Bd7 {[%emt 0:01:04]} 44. Nc3 {[%emt 0:00:46]} Kf6 {[%emt 0:00:24]} 45. Kd4 {[%emt 0:00:00]} Kg5 {[%emt 0:00:00]} 46. Ke5 {[%emt 0:00:00]} Kg4 {[%emt 0:00:00]} 47. Kd6 {[%emt 0:00:00]} Be8 {[%emt 0:00:00]} 48. Ke5 {[%emt 0:00:00]} g6 {[%emt 0:00:00]} 49. a4 {[%emt 0:00:00]} Kxg3 {[%emt 0:00:00]} 50. b5 {[%emt 0:00:00]} Bf7 {[%emt 0:00:00]} 51. Kf6 {[%emt 0:00:00]} Bb3 {[%emt 0:00:00]} 52. Ne2+ {[%emt 0:00:00]} Kg4 {[%emt 0:00:00]} 53. Kxg6 {[%emt 0:00:00]} f4 {[%emt 0:00:00]} 0-1

[Event "26th OIBM 2023"]
[Site "Gmund am Tegernsee"]
[Date "2023.11.02"]
[Round "6.44"]
[White "Czap, Bernard"]
[Black "Lammers, Markus"]
[Result "1-0"]
[ECO "A13"]
[WhiteElo "2028"]
[BlackElo "2336"]
[Annotator "ChessBase"]
[PlyCount "67"]
[EventDate "2023.10.04"]
[EventType "swiss"]
[EventCountry "GER"]
[SourceTitle "playchess.com"]
[Source "ChessBase"]
[SourceQuality "1"]
[TimeControl "40/5400+30:1800+30"]

1. Nf3 {[%emt 0:00:00]} Nf6 {[%emt 0:01:53]} 2. c4 {[%emt 0:00:09]} e6 {[%emt 0:03:03]} 3. g3 {[%emt 0:02:21]} d5 {[%emt 0:02:27]} 4. Bg2 {[%emt 0:00:11]} d4 {[%emt 0:00:17]} 5. O-O {[%emt 0:00:13]} Nc6 {[%emt 0:02:17]} 6. e3 {[%emt 0:05:14]} Bc5 {[%emt 0:04:01]} 7. exd4 {[%emt 0:02:24]} Nxd4 {[%emt 0:00:29]} 8. Nxd4 {[%emt 0:04:13]} Qxd4 {[%emt 0:06:34]} 9. d3 {[%emt 0:01:10]} O-O {[%emt 0:00:59]} 10. Nc3 {[%emt 0:01:49]} Rd8 {[%emt 0:06:09]} 11. Be3 {[%emt 0:10:43]} Qe5 {[%emt 0:12:08]} 12. Bf4 {[%emt 0:05:21]} Qf5 {[%emt 0:00:27]} 13. Bxc7 {[%emt 0:02:11]} Rd7 {[%emt 0:02:21]} 14. Bf4 {[%emt 0:04:08]} e5 {[%emt 0:01:09]} 15. Be3 {[%emt 0:02:58]} Bxe3 {[%emt 0:07:00]} 16. fxe3 {[%emt 0:00:20]} Qxd3 {[%emt 0:00:18]} 17. Qxd3 {[%emt 0:03:09]} Rxd3 {[%emt 0:00:03]} 18. Rad1 {[%emt 0:00:36]} Rxd1 {[%emt 0:01:10]} 19. Rxd1 {[%emt 0:00:13]} Be6 {[%emt 0:01:14]} 20. Bxb7 {[%emt 0:01:14]} Rb8 {[%emt 0:00:10]} 21. c5 {[%emt 0:00:57]} Kf8 {[%emt 0:04:01]} 22. c6 {[%emt 0:00:58]} Ke7 {[%emt 0:04:02]} 23. b4 {[%emt 0:08:41]} a6 {[%emt 0:10:37]} 24. a3 {[%emt 0:01:13]} Bc8 {[%emt 0:01:38]} 25. Nd5+ {[%emt 0:03:52]} Nxd5 {[%emt 0:01:28]} 26. Rxd5 {[%emt 0:00:07]} Bxb7 {[%emt 0:00:12]} 27. Rd7+ {[%emt 0:01:18]} Ke6 {[%emt 0:05:46]} 28. Rxb7 {[%emt 0:00:12]} Ra8 {[%emt 0:00:52]} 29. a4 {[%emt 0:02:57]} e4 {[%emt 0:01:47]} 30. g4 {[%emt 0:10:33]} Kd5 {[%emt 0:01:11]} 31. b5 {[%emt 0:00:12]} axb5 {[%emt 0:00:20]} 32. axb5 {[%emt 0:00:05]} Kc4 {[%emt 0:00:14]} 33. c7 {[%emt 0:02:07]} Kd5 {[%emt 0:20:43]} 34. Rb8 1-0